bitfinex/quotes_ETHUSD_20240722
["timestamp","ask_amount","ask_price","bid_price","bid_amount"]
[1721656728519,0.35,3474.4,3473.8,2.87868]
[1721656728726,0.35,3474.4,3474.0,2.87848]
[1721656728926,4.44749853,3475.2,3473.8,2.87863]
[1721656728927,2.74749853,3475.2,3474.1,0.575711]
[1721656729123,2.74749853,3475.2,3474.2,2.87834]
[1721656729124,0.35,3474.8,3474.2,2.87834]
[1721656729529,2.74749853,3475.2,3474.3,2.87825]
[1721656729747,0.45149853,3475.2,3474.5,2.87805]
[1721656729960,0.35,3474.9,3474.5,2.87805]
[1721656730260,0.45149853,3475.2,3474.9,2.87771]
[1721656730456,7.32,3475.9,3475.0,2.87768]
[1721656730754,7.32,3475.9,3474.9,3.70301994]
[1721656730975,3.035,3476.2,3474.9,0.88286955]
[1721656731132,0.35,3475.8,3474.8,5.31778]
[1721656731460,2.4773,3476.3,3475.3,2.87744]
[1721656731680,0.35,3476.0,3475.4,2.87734]
[1721656731961,2.88,3476.6,3475.3,2.87743]
[1721656732112,0.35,3476.1,3475.4,2.87736]
[1721656732314,0.35,3476.1,3474.5,2.4241]
[1721656732315,0.35,3476.1,3475.0,2.87768]
[1721656732538,4.57649,3476.5,3475.2,2.87746]
[1721656732539,1.7,3476.5,3475.2,2.87746]
[1721656732781,2.88,3476.6,3475.2,2.87749]
[1721656732983,0.35,3476.1,3475.4,2.87735]
[1721656733163,2.88,3476.6,3475.4,2.87735]
[1721656733373,0.35,3476.3,3475.4,2.87735]
[1721656733836,0.35,3476.3,3475.5,2.87727]
[1721656734040,0.35,3476.3,3475.6,2.87714]
[1721656734294,0.35,3476.3,3475.5,0.575476]
[1721656734594,3.385,3476.3,3474.8,2.87785]
[1721656734795,0.35,3476.3,3475.2,2.87752]
[1721656735141,3.035,3476.5,3475.2,2.87752]
[1721656735640,3.035,3476.5,3474.5,5.30217]
[1721656735641,3.035,3476.5,3475.3,2.87738]
[1721656735874,0.35,3476.1,3475.4,2.87728]
[1721656736081,0.35,3476.1,3475.5,2.87727]
[1721656736297,3.0,3476.5,3475.4,3.01088]
[1721656736602,0.35,3476.4,3475.2,2.87745]
[1721656736804,0.35,3476.4,3475.4,2.87729]
[1721656736961,2.05,3476.4,3475.0,2.87768]
[1721656737539,2.05,3476.4,3474.8,8.49224]
[1721656737540,3.035,3476.3,3474.9,2.87777]
[1721656737834,6.035,3476.2,3474.9,2.87777]
[1721656737978,0.35,3475.8,3474.9,2.87777]
[1721656738183,0.35,3475.8,3474.3,6.12523]
[1721656738184,0.35,3475.8,3474.6,2.87802]
[1721656738383,5.6409,3475.8,3474.1,2.3122]
[1721656738654,3.035,3475.6,3474.1,5.19058]
[1721656738935,3.035,3475.6,3474.5,2.87805]
[1721656738936,3.0,3475.5,3474.5,2.87805]
[1721656739138,0.35,3475.2,3474.6,2.87802]
[1721656739634,0.6035,3475.4,3474.6,2.87799]
[1721656739833,0.35,3475.5,3474.6,2.87799]
[1721656739982,0.35,3475.5,3474.1,2.3122]
[1721656740184,2.85,3475.7,3474.7,2.8779]
[1721656740389,0.35,3475.5,3474.8,2.8778]
[1721656740623,2.2559,3475.8,3474.8,2.87779]
[1721656740828,0.38030636,3475.8,3474.3,3.247]
[1721656741037,0.35,3475.7,3474.8,2.87778]
[1721656741264,0.35,3475.7,3474.3,3.247]
[1721656741265,3.385,3475.7,3474.3,3.247]
[1721656741399,3.385,3475.7,3474.3,6.12526]
[1721656741603,5.085,3475.7,3473.8,6.12568]
[1721656741782,3.17684293,3476.0,3474.3,3.247]
[1721656741783,0.29990293,3476.0,3474.3,3.247]
[1721656742137,0.35,3475.7,3475.3,2.87736]
[1721656742281,2.4558,3476.3,3475.3,2.87736]
[1721656742683,0.35,3475.9,3475.5,2.87723]
[1721656742932,2.4558,3476.3,3475.5,2.87723]
[1721656743093,0.35,3476.1,3475.3,2.87741]
[1721656743313,0.35,3476.1,3474.4,6.799638]
[1721656743642,0.35,3476.1,3474.8,2.87778]
[1721656743785,0.35,3476.1,3475.0,2.87769]
[1721656743985,3.385,3476.1,3474.4,3.921458]
[1721656744247,3.0,3476.2,3474.4,3.921458]
[1721656744248,1.7,3475.9,3474.6,2.878]
[1721656744552,1.7,3475.9,3474.9,2.8777]
[1721656744553,0.35,3475.5,3474.9,2.8777]
[1721656744839,3.0,3475.9,3475.0,2.87768]
[1721656744983,0.35,3475.6,3475.1,2.87761]
[1721656745182,0.35,3475.6,3474.9,2.87771]
[1721656745387,0.35,3475.6,3475.1,2.8776]
[1721656745621,0.35,3475.6,3475.2,2.87752]
[1721656745825,5.4908,3476.3,3475.3,2.87742]
[1721656746127,2.4558,3476.3,3475.2,2.87752]
[1721656746289,1.46406844,3476.2,3475.2,2.87747]
[1721656746486,1.46406844,3476.2,3475.4,2.87736]
[1721656746684,0.35,3476.1,3475.4,2.87736]
[1721656746932,0.35,3476.1,3475.6,2.87719]
[1721656747122,1.7,3476.8,3475.6,2.87719]
[1721656747333,1.46394892,3476.7,3475.6,2.87715]
[1721656747484,0.35,3476.4,3475.7,2.87706]
[1721656747911,0.35,3476.4,3475.7,2.87704]
[1721656748087,0.35,3476.4,3475.8,0.287704]
[1721656748285,0.35,3476.4,3475.9,2.8769]
[1721656748489,3.0,3476.7,3475.9,2.8769]
[1721656748737,0.35,3476.5,3475.4,0.604259]
[1721656749020,1.46390426,3476.4,3475.6,2.87713]
[1721656749228,1.46390426,3476.4,3475.8,2.87697]
[1721656749429,1.46390426,3476.4,3475.9,2.8769]
[1721656749723,3.0,3476.9,3476.1,2.87672]
[1721656749928,0.35,3476.6,3476.1,2.87672]
[1721656750084,0.35,3476.6,3476.0,2.87686]
[1721656750085,0.35,3476.6,3475.9,0.575387]
[1721656750427,3.0,3476.9,3475.8,2.87696]
[1721656750428,1.46383804,3476.5,3475.8,2.87696]
[1721656750728,1.46383804,3476.4,3475.9,2.87694]
[1721656750934,3.0,3476.9,3475.9,2.87694]
[1721656751225,0.35,3476.5,3475.9,2.87694]
[1721656751421,3.0,3476.9,3475.3,3.247]
[1721656751621,2.9351991,3477.0,3475.3,3.247]
[1721656751622,1.4637703,3476.8,3476.3,2.8766]
[1721656751809,1.4637703,3476.8,3476.2,2.87664]
[1721656751810,1.4637703,3476.7,3476.2,2.87664]
[1721656752013,2.9351991,3477.0,3476.0,2.87682]
[1721656752322,0.35,3476.8,3475.4,0.881123]
[1721656752633,4.4987024,3476.7,3475.4,0.881123]
[1721656752841,4.98357264,3476.6,3475.6,2.87715]
[1721656752990,4.98357264,3476.6,3476.0,2.87686]
[1721656752991,1.4637024,3476.5,3476.0,2.87686]
[1721656753329,3.0,3476.9,3476.0,2.87681]
[1721656753623,3.0,3476.9,3475.3,3.247]
[1721656753624,0.35,3476.6,3475.3,3.247]
[1721656753928,0.35,3476.6,3476.0,2.87682]
[1721656754142,2.9351991,3477.0,3476.6,2.87629]
[1721656754353,0.4512991,3477.0,3476.6,2.87632]
[1721656754635,0.4512991,3477.0,3476.3,2.434]
[1721656754804,0.4512991,3477.0,3476.4,2.87647]
[1721656754989,0.4512991,3477.0,3476.5,2.87641]
[1721656755193,0.4512991,3477.0,3476.5,3.695098]
[1721656755494,0.4512991,3477.0,3476.5,3.695078]
[1721656755810,0.4512991,3477.0,3476.6,2.87629]
[1721656756012,0.4512991,3477.0,3476.5,0.818688]
[1721656756191,0.4512991,3477.0,3476.1,0.612382]
[1721656756192,0.4512991,3477.0,3476.8,2.87616]
[1721656756396,0.4512991,3477.0,3476.9,5.75224]
[1721656756594,0.4512991,3477.0,3476.9,2.87612]
[1721656757427,0.4512991,3477.0,3476.9,5.75224]
[1721656757804,3.035,3477.9,3477.0,2.87602]
[1721656758128,0.35,3477.6,3477.1,2.87591]
[1721656758303,3.035,3477.9,3477.1,2.87591]
[1721656758304,3.035,3477.9,3477.1,0.575193]
[1721656758513,3.035,3477.9,3477.1,2.87594]
[1721656758806,0.35,3477.7,3476.9,2.87607]
[1721656759019,0.35,3477.7,3477.1,2.87589]
[1721656759234,0.35,3477.7,3476.7,2.434]
[1721656759527,6.035,3477.9,3476.7,2.434]
[1721656759730,6.035,3477.9,3475.9,5.25741]
[1721656759731,3.385,3477.7,3475.9,4.8145]
[1721656759896,3.035,3477.3,3476.1,2.87673]
[1721656760091,0.35,3477.0,3476.1,2.87673]
[1721656760310,0.35,3477.0,3476.4,2.87653]
[1721656760594,0.35,3477.0,3476.5,2.8764]
[1721656760795,0.35,3477.0,3476.3,2.434]
[1721656761130,3.0,3477.3,3476.7,2.87628]
[1721656761336,0.35,3477.2,3476.7,2.87628]
[1721656761496,3.0,3477.3,3476.7,2.87622]
[1721656761691,0.35,3477.3,3476.4,2.87652]
[1721656762036,2.4552,3477.4,3476.7,3.163862]
[1721656762350,2.8052,3477.4,3476.1,2.87677]
[1721656762635,3.035,3477.0,3475.5,5.31121]
[1721656762796,3.035,3476.5,3475.1,0.28776]
[1721656762994,3.035,3476.5,3474.4,2.3122]
[1721656762995,5.7408,3476.0,3474.7,2.434]
[1721656763195,5.7408,3476.0,3474.6,2.878]
[1721656763424,0.35,3475.6,3474.4,2.87817]
[1721656763695,0.35,3475.6,3474.7,2.434]
[1721656763917,0.35,3475.6,3474.8,2.87779]
[1721656764098,0.35,3475.6,3474.0,0.24419]
[1721656764099,0.35,3475.6,3475.1,5.31156]
[1721656764298,3.0,3475.9,3474.6,3.248]
[1721656764603,3.0,3475.9,3474.7,2.87792]
[1721656764604,0.35,3475.9,3474.7,2.87792]
[1721656764824,4.378256,3475.9,3474.7,0.900399]
[1721656764994,3.035,3475.8,3474.7,0.900399]
[1721656765195,3.035,3475.8,3474.7,3.778259]
[1721656766141,3.035,3475.8,3475.0,2.87768]
[1721656766349,3.35,3475.9,3475.1,2.87756]
[1721656766534,3.0,3475.9,3475.1,3.453099]
[1721656766853,0.35,3475.9,3475.1,3.453099]
[1721656767183,3.35,3475.9,3475.1,3.453099]
[1721656768539,0.35,3475.9,3475.5,2.87722]
[1721656768866,5.3309,3476.6,3475.1,3.248]
[1721656768867,5.3309,3476.6,3475.3,2.87737]
[1721656769220,0.35,3476.2,3475.3,2.87737]
[1721656769747,0.35,3476.2,3475.1,9.00312]
[1721656769931,0.35,3476.2,3475.3,2.87744]
[1721656770134,0.35,3476.2,3475.4,3.777648]
[1721656770385,0.35,3476.2,3475.4,0.900298]
[1721656771041,0.35,3476.2,3475.4,3.777648]
[1721656771617,0.35,3476.2,3475.4,0.900298]
[1721656771826,0.35,3476.2,3475.1,6.12557]
[1721656771827,0.35,3476.2,3475.2,2.87747]
[1721656772240,0.35,3476.2,3475.3,2.87743]
[1721656772926,0.35,3476.2,3475.1,6.12558]
[1721656773128,0.35,3476.2,3475.3,2.87744]
[1721656773432,0.35,3476.2,3475.1,3.248]
[1721656773627,0.35,3476.2,3475.1,3.20238]
[1721656773831,0.35,3476.2,3475.1,0.3248]
[1721656774037,0.35,3476.2,3475.1,3.20235]
[1721656774233,0.35,3476.2,3474.7,3.778299]
[1721656774562,0.35,3476.2,3474.3,2.87822]
[1721656774563,2.3485,3475.6,3474.3,2.87822]
[1721656774724,0.35,3475.3,3474.4,2.87814]
[1721656775422,0.35,3475.3,3474.4,5.75627]
[1721656775623,2.3485,3475.6,3474.4,2.87813]
[1721656775819,5.3485,3475.6,3474.4,2.87813]
[1721656776024,0.35,3475.4,3474.5,0.575644]
[1721656776461,0.35,3475.4,3474.1,3.248]
[1721656776773,0.35,3475.4,3474.0,3.12267]
[1721656776774,0.35,3475.4,3474.0,3.12265]
[1721656776976,6.22736,3475.4,3474.0,0.24419]
[1721656777262,6.22736,3475.4,3473.7,2.87871]
[1721656777263,2.87758,3475.2,3473.7,2.87871]
[1721656777567,2.87758,3475.2,3473.3,5.75812]
[1721656777568,0.35,3474.6,3473.3,5.75812]
[1721656777786,0.35,3474.6,3473.3,2.87904]
[1721656777928,0.35,3474.6,3473.2,2.87913]
[1721656778124,0.35,3474.6,3473.3,2.87909]
[1721656778380,0.972785,3474.6,3473.4,0.900631]
[1721656779232,0.622785,3474.6,3473.4,0.900631]
[1721656779458,0.35,3474.2,3473.4,0.900631]
[1721656779634,0.35,3474.2,3473.3,2.87906]
[1721656780621,2.2664,3474.1,3473.1,6.1272]
[1721656780827,2.2664,3474.1,3473.2,2.87916]
[1721656781169,2.2664,3474.1,3473.1,3.248]
[1721656782350,2.2664,3474.1,3472.9,2.87937]
[1721656782351,0.35,3474.0,3472.9,2.87939]
[1721656782554,0.35,3474.0,3473.0,3.167279]
[1721656783133,0.35,3474.0,3473.0,0.287939]
[1721656783562,0.35,3474.0,3472.6,3.248]
[1721656783563,3.22857,3474.0,3472.6,3.248]
[1721656783748,2.87861,3473.9,3472.6,3.248]
[1721656783932,2.87853,3474.0,3472.6,3.248]
[1721656784134,2.2664,3474.1,3472.6,3.248]
[1721656784135,0.35,3473.6,3472.6,3.248]
[1721656784342,0.35,3473.6,3472.6,2.439]
[1721656784649,0.35,3473.6,3472.7,0.2439]
[1721656785069,3.0,3474.0,3472.7,0.2439]
[1721656785268,3.0,3474.0,3472.7,3.12348]
[1721656785491,0.35,3473.7,3472.8,2.87951]
[1721656785630,3.0,3474.0,3472.8,2.87945]
[1721656785831,2.2664,3474.1,3473.0,2.439]
[1721656786132,0.35,3473.9,3472.8,0.556235]
[1721656786442,2.2664,3474.1,3472.8,0.556235]
[1721656786443,2.2664,3474.1,3472.8,2.87944]
[1721656786685,0.35,3473.9,3473.0,2.87933]
[1721656787035,0.35,3473.9,3473.2,2.87913]
[1721656787265,2.2664,3474.1,3473.0,2.439]
[1721656787469,0.35,3474.0,3473.1,2.87925]
[1721656787705,2.2664,3474.1,3473.2,0.819765]
[1721656787980,2.6164,3474.1,3473.0,5.31829]
[1721656788545,2.6164,3474.1,3472.7,0.2439]
[1721656788871,5.87859,3474.0,3472.7,0.2439]
[1721656789188,0.35,3473.6,3472.8,2.87951]
[1721656789390,3.0,3474.0,3473.0,2.87934]
[1721656789553,2.2664,3474.1,3473.0,2.87931]
[1721656789554,5.2664,3474.1,3473.0,2.87931]
[1721656789875,2.2664,3474.1,3473.0,2.87931]
[1721656790090,2.2664,3474.1,3473.1,2.87925]
[1721656790234,0.35,3474.0,3473.0,2.87934]
[1721656790436,3.35,3474.0,3473.1,0.6359115]
[1721656791275,3.35,3474.0,3472.9,0.600305]
[1721656791787,2.2788,3473.5,3472.1,2.4414]
[1721656791996,5.2788,3473.5,3471.9,5.31921]
[1721656792175,8.15776,3473.5,3472.0,2.88011]
[1721656792344,0.35542185,3473.4,3472.1,0.819931]
[1721656792545,0.35,3473.1,3472.1,3.700021]
[1721656792785,0.35,3473.1,3472.1,3.699981]
[1721656792942,0.35,3473.1,3472.2,2.88001]
[1721656793171,5.2788,3473.5,3472.3,2.439]
[1721656793172,0.35,3473.2,3472.3,2.439]
[1721656793471,0.35,3473.2,3472.4,0.6138871]
[1721656793644,0.35,3473.2,3472.5,2.87972]
[1721656793841,0.35,3473.2,3472.5,2.87969]
[1721656794045,0.35,3473.2,3472.4,3.4937271]
[1721656794279,5.2788,3473.5,3472.4,3.4937271]
[1721656794484,5.2788,3473.5,3472.5,0.88127071]
[1721656794697,0.35,3473.3,3472.5,3.76099071]
[1721656794877,0.35,3473.3,3472.6,2.87965]
[1721656795211,0.35,3473.3,3472.5,0.88127071]
[1721656795212,0.35,3473.3,3472.7,2.87959]
[1721656795547,2.2788,3473.5,3472.7,2.87959]
[1721656795746,2.2788,3473.5,3472.8,0.37608607]
[1721656796352,2.2788,3473.5,3472.8,3.25553607]
[1721656796353,2.6288,3473.5,3472.8,3.25553607]
[1721656796647,2.6288,3473.5,3472.9,2.87938]
[1721656796983,0.35,3473.5,3472.9,2.87937]
[1721656797284,3.0,3473.9,3473.0,0.56944561]
[1721656797470,2.3954,3474.0,3473.0,3.44878561]
[1721656797656,2.3954,3474.0,3473.1,2.87926]
[1721656797982,0.35,3473.7,3473.1,2.87926]
[1721656798144,0.35,3473.7,3473.0,0.56944561]
[1721656798347,0.35,3473.7,3473.1,0.38249217]
[1721656798547,0.35,3473.7,3473.1,3.26176217]
[1721656799103,0.35,3473.7,3473.2,2.87918]
[1721656799391,0.35,3473.7,3473.1,0.38249217]
[1721656799689,2.3954,3474.0,3473.1,3.26173217]
[1721656799979,0.35,3473.9,3473.2,2.87918]
[1721656800186,0.35,3473.9,3472.9,2.87939]
[1721656800404,3.35,3473.9,3472.3,2.439]
[1721656800543,0.35,3473.9,3473.4,2.87898]
[1721656800745,7.0793,3474.4,3473.1,2.439]
[1721656800981,0.35,3474.1,3472.7,2.439]
[1721656801191,0.35,3474.1,3473.0,2.87928]
[1721656801343,0.35,3474.1,3473.3,2.87909]
[1721656801554,0.35,3474.1,3472.8,0.2439]
[1721656801752,2.2734,3473.7,3471.9,2.439]
[1721656802073,2.2734,3473.7,3472.7,2.439]
[1721656802256,3.9734,3473.7,3472.3,2.439]
[1721656802459,3.0,3473.6,3472.3,2.439]
[1721656802660,0.35,3473.5,3472.4,2.87979]
[1721656802864,1.08234,3473.5,3472.5,2.87976]
[1721656803081,1.08234,3473.5,3472.5,2.87971]
[1721656803294,1.08234,3473.5,3472.4,2.87981]
[1721656803463,1.08234,3473.5,3472.6,2.87964]
[1721656804521,1.08234,3473.5,3472.4,2.87979]
[1721656804731,1.08234,3473.5,3472.5,2.87974]
[1721656804887,1.08234,3473.5,3472.6,2.87968]
[1721656805091,1.08234,3473.5,3472.7,2.87956]
[1721656805303,0.35,3473.5,3472.8,2.87951]
[1721656805521,3.0,3473.6,3472.8,2.87947]
[1721656805730,2.2734,3473.7,3472.8,2.87947]
[1721656805894,2.6234,3473.7,3472.8,2.87947]
[1721656806094,3.0,3473.6,3472.7,2.87958]
[1721656806306,3.56234,3473.6,3472.5,2.87968]
[1721656806515,3.56234,3473.6,3472.2,2.87997]
[1721656806516,6.44121,3473.6,3472.2,2.87997]
[1721656806826,6.44121,3473.6,3472.2,2.87996]
[1721656806827,3.56234,3473.6,3472.2,2.87996]
[1721656807039,3.56234,3473.6,3472.4,2.87977]
[1721656807250,3.56234,3473.6,3472.3,2.87991]
[1721656807383,0.753574,3473.5,3472.2,2.87995]
[1721656807586,2.3678,3473.3,3471.5,3.252]
[1721656807915,2.3678,3473.3,3472.2,2.87997]
[1721656807916,5.3678,3473.3,3472.2,2.87997]
[1721656808083,5.3678,3473.3,3471.5,3.252]
[1721656808084,0.35,3473.1,3471.5,3.252]
[1721656808291,2.87957,3472.8,3471.3,2.88069]
[1721656808533,4.179,3472.6,3471.3,2.88069]
[1721656808835,4.179,3472.6,3471.0,2.881]
[1721656808836,0.35,3472.3,3471.0,2.881]
[1721656809018,5.3529,3472.1,3470.5,3.252]
[1721656809339,1.7,3471.8,3470.4,2.88144]
[1721656809489,1.7,3471.8,3470.7,2.8812]
[1721656809490,0.35,3471.7,3470.7,2.8812]
[1721656809685,0.35,3471.7,3471.0,2.88101]
[1721656809983,0.35,3471.7,3470.7,0.28812]
[1721656809984,2.88,3472.3,3471.4,3.252]
[1721656810221,2.88,3472.3,3471.8,2.88028]
[1721656810443,2.88,3472.3,3471.4,6.13264]
[1721656810586,2.88,3472.3,3471.6,2.88046]
[1721656811026,2.88,3472.3,3471.6,0.95891215]
[1721656811326,2.88,3472.3,3472.1,2.88004]
[1721656811628,2.88,3472.3,3472.2,2.88001]
[1721656811826,2.88,3472.3,3472.2,5.76002]
[1721656811993,2.98534,3473.6,3472.5,2.87972]
[1721656812330,2.98534,3473.6,3472.9,2.87942]
[1721656812331,0.35,3473.4,3472.9,2.87942]
[1721656812498,2.88,3473.5,3472.7,2.87955]
[1721656812898,3.466534,3473.5,3472.6,2.87963]
[1721656813061,3.466534,3473.5,3472.7,2.87959]
[1721656813360,3.23,3473.5,3473.1,2.87922]
[1721656813523,2.88,3473.5,3473.1,2.87922]
[1721656813925,2.88,3473.5,3472.7,2.87957]
[1721656814150,2.88,3473.5,3473.3,2.87904]
[1721656814849,2.88,3473.5,3473.1,2.87926]
[1721656814850,2.88,3473.5,3473.1,2.87923]
[1721656815063,2.88,3473.5,3473.1,0.613123]
[1721656815206,2.88,3473.5,3472.3,2.87992]
[1721656815207,2.88,3473.5,3472.4,3.252]
[1721656815420,2.88,3473.5,3472.7,2.87959]
[1721656815607,2.88,3473.5,3472.9,2.87942]
[1721656815838,2.88,3473.5,3472.7,2.87959]
[1721656816261,2.88,3473.5,3472.8,2.87951]
[1721656816468,2.88,3473.5,3472.9,2.87943]
[1721656816689,2.88,3473.5,3473.0,0.05758192]
[1721656816869,2.88,3473.5,3473.1,2.87922]
[1721656817151,2.88,3473.5,3472.9,3.252]
[1721656817363,2.88,3473.5,3472.8,0.57591]
[1721656817658,2.88,3473.5,3473.0,2.87935]
[1721656817824,2.88,3473.5,3473.1,2.87922]
[1721656818025,2.88,3473.5,3473.2,2.87917]
[1721656818210,2.88,3473.5,3473.1,2.87919]
[1721656818409,2.88,3473.5,3473.1,3.51264]
[1721656818715,2.88,3473.5,3473.3,2.87905]
[1721656819061,2.88,3473.5,3473.3,2.87903]
[1721656819491,2.3662,3474.0,3473.4,2.87902]
[1721656819701,1.46495352,3473.9,3473.3,2.87903]
[1721656819972,1.46495352,3473.9,3473.7,2.87872]
[1721656820141,7.32,3474.5,3473.7,2.87872]
[1721656820345,1.46476332,3474.4,3473.8,2.87867]
[1721656820546,1.46476332,3474.3,3474.1,2.87838]
[1721656820877,2.88,3474.6,3474.5,2.87811]
[1721656821085,1.17763864,3475.7,3474.1,0.575685]
[1721656821086,2.3789,3475.8,3474.6,2.87802]
[1721656821387,0.45133275,3475.3,3474.6,2.87802]
[1721656821689,1.46432412,3475.2,3474.7,2.87793]
[1721656821893,1.46432412,3475.2,3474.8,2.87782]
[1721656822033,1.46432412,3475.2,3474.6,2.87799]
[1721656822231,1.46432412,3475.2,3474.7,2.87793]
[1721656822433,1.46424976,3475.1,3474.4,3.252]
[1721656822758,1.46424976,3475.1,3473.8,2.4685]
[1721656822759,1.46439744,3475.0,3473.9,2.87855]
[1721656823074,1.46439744,3475.0,3473.9,2.8786]
[1721656823446,1.46439744,3475.0,3474.1,3.252]
[1721656823646,1.46439744,3475.0,3474.5,2.87804]
[1721656823850,3.0,3475.6,3474.6,2.87802]
[1721656824046,2.64020422,3475.5,3474.7,2.8779]
[1721656824253,1.46431422,3475.4,3474.8,2.87781]
[1721656824469,1.46431422,3475.4,3475.0,2.87769]
[1721656824681,2.88,3475.7,3475.0,2.87768]
[1721656824982,1.46417881,3475.6,3474.8,2.87779]
[1721656825137,2.88,3475.7,3474.7,2.87794]
[1721656825337,1.46414139,3475.6,3474.7,2.87794]
[1721656825570,1.46414139,3475.6,3474.5,2.87806]
[1721656825766,1.46414139,3475.6,3474.2,2.87831]
[1721656825967,1.46414139,3475.6,3474.4,2.87818]
[1721656826167,1.46414139,3475.6,3473.9,2.87856]
[1721656826168,4.0782,3475.4,3473.9,2.87856]
[1721656826340,2.87769,3475.0,3473.6,3.252]
[1721656826549,1.46440656,3474.9,3473.5,2.87887]
[1721656826743,0.35,3474.7,3473.7,2.87872]
[1721656826989,3.0,3475.3,3473.9,2.87858]
[1721656827139,3.0,3475.3,3473.7,3.30956379]
[1721656827140,0.35,3475.1,3473.8,2.87862]
[1721656827345,1.46452571,3475.0,3473.8,2.87862]
[1721656827643,1.46452571,3475.0,3473.9,2.8786]
[1721656827842,1.46452571,3475.0,3474.0,2.87847]
[1721656828043,1.46452571,3475.0,3474.0,2.87852]
[1721656828270,0.54415575,3474.9,3473.6,2.87881]
[1721656828478,1.46452571,3474.8,3473.7,2.87869]
[1721656828783,1.81452571,3474.8,3473.9,2.87858]
[1721656828965,0.35,3474.8,3473.3,3.454869]
[1721656829167,0.35,3474.8,3473.7,3.252]
[1721656829371,3.62703181,3475.2,3474.0,2.87845]
[1721656829372,0.62703181,3475.2,3474.0,2.87845]
[1721656829573,0.35,3475.0,3474.0,2.87845]
[1721656829782,0.35,3475.0,3473.8,3.20381]
[1721656829982,0.62703181,3475.2,3473.9,3.42859]
[1721656830282,1.81453992,3475.1,3473.6,2.87879]
[1721656830505,2.46645609,3475.0,3473.7,2.87877]
[1721656830646,1.46453992,3474.9,3473.7,2.87877]
[1721656831044,1.46453992,3474.9,3474.2,2.8783]
[1721656831293,0.35,3475.1,3474.3,0.05755506]
[1721656831488,2.3782,3475.4,3474.3,0.05755506]
[1721656831784,1.46434031,3475.3,3474.4,2.87818]
[1721656831989,0.64496105,3475.4,3474.4,2.87813]
[1721656832287,2.88,3475.7,3474.6,2.878]
[1721656832474,1.46427178,3475.6,3474.6,2.878]
[1721656832643,1.46427178,3475.6,3474.5,2.87808]
[1721656832846,1.46427178,3475.6,3474.7,2.87788]
[1721656833047,1.46427178,3475.6,3474.9,2.87777]
[1721656833286,2.88,3475.7,3474.9,2.87777]
[1721656833484,2.88,3475.7,3474.9,2.87773]
[1721656834310,1.20130592,3476.4,3474.9,2.87773]
[1721656834514,0.35,3476.1,3474.9,2.87771]
[1721656834809,1.46416019,3476.0,3475.0,2.87767]
[1721656835307,3.93305746,3476.3,3475.2,2.87752]
[1721656835469,4.46411702,3476.2,3475.0,2.87763]
[1721656835672,1.81411702,3476.1,3474.9,2.87772]
[1721656835914,1.81411702,3476.1,3474.7,6.12993]
[1721656835915,1.73883447,3476.0,3474.7,6.12993]
[1721656836114,0.27471745,3476.0,3474.8,2.87781]
[1721656836426,0.27471745,3476.0,3474.8,2.87779]
[1721656836713,0.29943386,3476.5,3475.2,2.87752]
[1721656836925,0.29943386,3476.5,3474.7,3.252]
[1721656836926,2.05,3476.2,3474.7,3.252]
[1721656837077,1.4641145,3476.1,3474.7,6.12993]
[1721656837271,0.63907945,3476.0,3475.0,2.87767]
[1721656837500,0.35,3476.2,3475.2,2.8775]
[1721656837686,3.29943386,3476.5,3475.3,2.8774]
[1721656837886,1.81402115,3476.4,3475.3,2.8774]
[1721656838092,1.46402807,3476.3,3475.1,2.87755]
[1721656838297,3.29943386,3476.5,3475.2,2.87748]
[1721656838514,3.29943386,3476.5,3475.3,3.165178]
[1721656838515,0.35,3476.3,3475.3,3.165178]
[1721656838814,4.15452825,3476.5,3475.4,2.87729]
[1721656839191,0.35,3476.4,3475.5,2.87727]
[1721656839373,0.35,3476.4,3475.6,0.05753653]
[1721656839581,2.3752,3476.6,3475.7,2.8771]
[1721656839774,2.88,3476.9,3475.8,2.93454184]
[1721656840030,0.35,3476.7,3475.8,0.05753184]
[1721656840229,2.88,3476.9,3475.7,3.252]
[1721656840716,0.35,3476.8,3475.4,2.87735]
[1721656840889,2.05,3476.8,3475.3,0.287748]
[1721656841091,2.255,3476.3,3475.3,0.287748]
[1721656841287,5.932465,3476.3,3474.8,0.6417738]
[1721656841489,4.57688,3476.0,3474.8,0.6417738]
[1721656841704,2.87713,3475.7,3474.6,0.287808]
[1721656841909,2.87719,3475.7,3474.6,0.287808]
[1721656842111,2.87719,3475.7,3474.3,2.87823]
[1721656842112,3.22719,3475.7,3474.3,2.87823]
[1721656842330,3.22719,3475.7,3474.2,6.1303]
[1721656842331,0.35,3475.7,3474.5,2.87806]
[1721656842524,0.35,3475.7,3474.2,3.252]
[1721656842841,0.35,3475.7,3474.4,2.87819]
[1721656843085,0.35,3475.7,3473.8,2.87867]
[1721656843086,4.1319,3475.4,3473.7,3.252]
[1721656843212,4.1319,3475.4,3472.5,0.74600008]